fUSD/lending_fUSD_20250702
["ID","MTS","AMOUNT","RATE_DAILY","PERIOD"]
[368974005,1751418649212,-490.0,0.00016705,2]
[368974007,1751418649222,-490.0,0.00016705,2]
[368974009,1751418649231,-490.0,0.00016705,2]
[368974011,1751418649240,-151.0,0.00016705,2]
[368974013,1751418649249,-490.0,0.00016705,2]
[368974015,1751418649258,-490.0,0.00016705,2]
[368974017,1751418649267,-490.0,0.00016705,2]
[368974019,1751418649277,-490.0,0.00016705,2]
[368974021,1751418649286,-490.0,0.00016705,2]
[368974023,1751418649296,-490.0,0.00016705,2]
[368974025,1751418649305,-151.0,0.00016705,2]
[368974027,1751418649315,-585.42,0.00016705,2]
[368974029,1751418649324,-490.0,0.00016705,2]
[368974031,1751418649333,-425.72835508,0.00016705,2]
[368974033,1751418649342,-490.0,0.00016705,2]
[368974035,1751418649351,-490.0,0.00016705,2]
[368974037,1751418649360,-490.0,0.00016705,2]
[368974039,1751418649369,-769.09,0.00016705,2]
[368974041,1751418649378,-490.0,0.00016705,2]
[368974043,1751418649387,-490.0,0.00016705,2]
[368974045,1751418649397,-490.0,0.00016705,2]
[368974047,1751418649406,-490.0,0.00016705,2]
[368974049,1751418649415,-490.0,0.00016705,2]
[368974051,1751418649424,-714.86,0.00016705,2]
[368974053,1751418649433,-810.65,0.00016705,2]
[368974055,1751418649442,-490.0,0.00016705,2]
[368974057,1751418649452,-639.96,0.00016705,2]
[368974059,1751418649461,-490.0,0.00016705,2]
[368974061,1751418649470,-506.61683223,0.00016705,2]
[368974063,1751418649479,-795.79,0.00016705,2]
[368974064,1751418649488,-490.0,0.00016705,2]
[368974066,1751418649497,-490.0,0.00016705,2]
[368974068,1751418649506,-490.0,0.00016705,2]
[368974070,1751418649516,-490.0,0.00016705,2]
[368974072,1751418649525,-490.0,0.00016705,2]
[368974074,1751418649534,-490.0,0.00016705,2]
[368974076,1751418649543,-490.0,0.00016705,2]
[368974078,1751418649552,-490.0,0.00016705,2]
[368974080,1751418649562,-490.0,0.00016705,2]
[368974082,1751418649571,-1848.48,0.00016705,2]
[368974084,1751418649580,-490.0,0.00016705,2]
[368974086,1751418649589,-490.0,0.00016705,2]
[368974088,1751418649599,-490.0,0.00016705,2]
[368974089,1751418649608,-490.0,0.00016705,2]
[368974090,1751418649617,-490.0,0.00016705,2]
[368974091,1751418649626,-490.0,0.00016705,2]
[368974092,1751418649634,-1435.54,0.00016705,2]
[368974093,1751418649643,-647.46,0.00016705,2]
[368974094,1751418649652,-490.0,0.00016705,2]
[368974095,1751418649661,-490.0,0.00016705,2]
[368974096,1751418649670,-490.0,0.00016705,2]
[368974097,1751418649679,-490.0,0.00016705,2]
[368974098,1751418649688,-490.0,0.00016705,2]
[368974100,1751418649697,-490.0,0.00016705,2]
[368974102,1751418649706,-490.0,0.00016705,2]
[368974104,1751418649717,-490.0,0.00016705,2]
[368974106,1751418649726,-3025.57,0.00016705,2]
[368974107,1751418649736,-490.0,0.00016705,2]
[368974109,1751418649746,-490.0,0.00016705,2]
[368974111,1751418649756,-490.0,0.00016705,2]
[368974113,1751418649765,-490.0,0.00016705,2]
[368974115,1751418649775,-490.0,0.00016705,2]
[368974117,1751418649784,-490.0,0.00016705,2]
[368974119,1751418649793,-519.33,0.00016705,2]
[368974121,1751418649803,-490.0,0.00016705,2]
[368974123,1751418649812,-384.21,0.00016705,2]
[368974125,1751418649820,-490.0,0.00016705,2]
[368974127,1751418649832,-490.0,0.00016705,2]
[368974129,1751418649841,-655.12,0.00016705,2]
[368974131,1751418649851,-918.97,0.00016705,2]
[368974133,1751418649860,-151.0,0.00016705,2]
[368974135,1751418649870,-666.64097073,0.00016706,2]
[368974137,1751418649878,-221.548221,0.00016706,2]
[368974139,1751418649888,-426.945488,0.00016706,2]
[368974141,1751418649897,-426.945488,0.00016706,2]
[368974143,1751418649906,-151.0,0.00016706,2]
[368974145,1751418649916,-151.0,0.00016706,2]
[368974147,1751418649925,-197.555472,0.00016706,2]
[368974149,1751418649935,-151.0,0.00016706,2]
[368974151,1751418649947,-398.118749,0.00016706,2]
[368974153,1751418649957,-398.118749,0.00016706,2]
[368974155,1751418649966,-243.113505,0.00016706,2]
[368974157,1751418649975,-243.113505,0.00016706,2]
[368974159,1751418649985,-151.0,0.00016706,2]
[368974161,1751418649994,-200.940784,0.00016706,2]
[368974163,1751418650004,-200.940784,0.00016706,2]
[368974165,1751418650013,-272.503914,0.00016706,2]
[368974167,1751418650022,-272.503914,0.00016706,2]
[368974170,1751418650041,-151.0,0.00016706,2]
[368974172,1751418650052,-172.710728,0.00016706,2]
[368974174,1751418650062,-6242.8276668,0.00016707,2]
[368974176,1751418650071,-151.0,0.00016707,2]
[368974178,1751418650081,-151.0,0.00016707,2]
[368974180,1751418650090,-151.0,0.00016707,2]
[368974182,1751418650100,-897.578496,0.00016707,2]
[368974184,1751418650110,-533.295327,0.00016707,2]
[368974186,1751418650119,-533.295327,0.00016707,2]
[368974188,1751418650128,-300.0,0.00016711,2]
[368974190,1751418650139,-811.0,0.00016712,2]
[368974192,1751418650150,-236.32795658,0.00016712,2]
[368974194,1751418650159,-499.18529877,0.00016712,2]
[368974196,1751418650168,-151.0,0.00016712,2]
[368974198,1751418650179,-151.0,0.00016712,2]
[368974200,1751418650188,-490.0,0.00016712,2]
[368974202,1751418650197,-151.0,0.00016712,2]
[368974204,1751418650206,-200.0,0.00016712,2]
[368974206,1751418650216,-367.07,0.00016712,2]
[368974208,1751418650225,-490.0,0.00016712,2]
[368974210,1751418650235,-426.945488,0.00016712,2]
[368974212,1751418650244,-426.945488,0.00016712,2]
[368974213,1751418650253,-426.945488,0.00016712,2]
[368974215,1751418650262,-426.945488,0.00016712,2]
[368974217,1751418650272,-490.0,0.00016712,2]
[368974219,1751418650281,-553.49,0.00016712,2]
[368974222,1751418650291,-490.0,0.00016712,2]
[368974223,1751418650300,-151.0,0.00016712,2]
[368974226,1751418650310,-151.0,0.00016712,2]
[368974227,1751418650319,-490.0,0.00016712,2]
[368974229,1751418650328,-52.21267469,0.00016712,2]
[368974294,1751418650929,-682.07017237,0.00016397,2]
[368974296,1751418650940,-175.92982763,0.00016397,2]
[368974298,1751418650951,-500.0,0.00016432,2]
[368974300,1751418650960,-500.0,0.00016432,2]
[368974302,1751418650970,-2.69083249,0.00016432,2]
[368974313,1751418651060,-497.30916751,0.00016432,2]
[368974315,1751418651070,-500.0,0.00016432,2]
[368974317,1751418651079,-500.0,0.00016432,2]
[368974319,1751418651089,-500.0,0.00016432,2]
[368974321,1751418651098,-500.0,0.00016432,2]
[368974323,1751418651107,-500.0,0.00016432,2]
[368974325,1751418651117,-500.0,0.00016432,2]
[368974327,1751418651126,-500.0,0.00016432,2]
[368974329,1751418651138,-500.0,0.00016432,2]
[368974331,1751418651148,-500.0,0.00016432,2]
[368974333,1751418651157,-500.0,0.00016432,2]
[368974335,1751418651168,-250.0,0.00016432,2]
[368974337,1751418651178,-151.0,0.00016705,2]
[368974339,1751418651188,-490.0,0.00016705,2]
[368974341,1751418651197,-437.78732531,0.00016712,2]
[368974343,1751418651207,-490.0,0.00016712,2]
[368974345,1751418651218,-490.0,0.00016712,2]
[368974347,1751418651227,-507.93,0.00016712,2]
[368974349,1751418651237,-151.0,0.00016712,2]
[368974351,1751418651247,-151.0,0.00016712,2]
[368974353,1751418651256,-490.0,0.00016712,2]
[368974355,1751418651265,-585.59,0.00016712,2]
[368974357,1751418651275,-490.0,0.00016712,2]
[368974359,1751418651285,-490.0,0.00016712,2]
[368974361,1751418651295,-490.0,0.00016712,2]
[368974363,1751418651304,-490.0,0.00016712,2]
[368974365,1751418651313,-231.16045649,0.00016712,2]
[368974367,1751418651325,-258.83954351,0.00016712,2]
[368974369,1751418651335,-490.0,0.00016712,2]
[368974371,1751418651344,-124.27348653,0.00016712,2]
[368974373,1751418651356,-365.72651347,0.00016712,2]
[368974375,1751418651365,-151.0,0.00016712,2]
[368974377,1751418651375,-151.0,0.00016712,2]
[368974379,1751418651385,-196.37,0.00016712,2]
[368974381,1751418651395,-490.0,0.00016712,2]
[368974383,1751418651404,-490.0,0.00016712,2]
[368974385,1751418651413,-1216.96,0.00016712,2]
[368974387,1751418651423,-490.0,0.00016712,2]
[368974389,1751418651432,-490.0,0.00016712,2]
[368974391,1751418651442,-490.0,0.00016712,2]
[368974393,1751418651452,-490.0,0.00016712,2]
[368974395,1751418651462,-490.0,0.00016712,2]
[368974396,1751418651471,-398.118749,0.00016712,2]
[368974397,1751418651481,-398.118749,0.00016712,2]
[368974398,1751418651491,-398.118749,0.00016712,2]
[368974399,1751418651500,-77.96653835,0.00016712,2]
[368974400,1751418651513,-320.15221065,0.00016712,2]
[368974401,1751418651523,-490.0,0.00016712,2]
[368974402,1751418651533,-63.86276811,0.00016712,2]
[368974403,1751418651544,-334.25598089,0.00016712,2]
[368974405,1751418651555,-398.118749,0.00016712,2]
[368974406,1751418651564,-490.0,0.00016712,2]
[368974409,1751418651575,-551.0,0.00016712,2]
[368974410,1751418651584,-243.113505,0.00016712,2]
[368974412,1751418651594,-243.113505,0.00016712,2]
[368974415,1751418651604,-243.113505,0.00016712,2]
[368974417,1751418651613,-243.113505,0.00016712,2]
[368974419,1751418651622,-490.0,0.00016712,2]
[368974421,1751418651632,-256.911944,0.00016712,2]
[368974423,1751418651641,-243.113505,0.00016712,2]
[368974425,1751418651650,-243.113505,0.00016712,2]
[368974427,1751418651659,-490.0,0.00016712,2]
[368974429,1751418651671,-490.0,0.00016712,2]
[368974431,1751418651681,-490.0,0.00016712,2]
[368974433,1751418651690,-500.0,0.00016712,2]
[368974435,1751418651699,-220.07561725,0.00016712,2]
[368974437,1751418651712,-269.92438275,0.00016712,2]
[368974439,1751418651723,-150.0,0.00016712,2]
[368974441,1751418651733,-192.98869223,0.00016712,2]
[368974443,1751418651743,-500.0,0.00016712,2]
[368974445,1751418651752,-500.0,0.00016712,2]
[368974447,1751418651762,-150.0,0.00016712,2]
[368974449,1751418651771,-500.0,0.00016712,2]
[368974452,1751418651781,-150.0,0.00016712,2]
[368974454,1751418651790,-150.91381745,0.00016712,2]
[368974456,1751418651800,-490.0,0.00016712,2]
[368974458,1751418651809,-183.20101512,0.00016712,2]
[368974460,1751418651819,-490.0,0.00016712,2]
[368974462,1751418651829,-150.0,0.00016712,2]
[368974464,1751418651839,-150.0,0.00016712,2]
[368974466,1751418651849,-490.0,0.00016712,2]
[368974468,1751418651858,-349.74745394,0.00016712,2]
[368974503,1751418652191,-490.0,0.00016705,2]
[368974505,1751418652202,-128.44254606,0.00016712,2]
[368974507,1751418652212,-490.0,0.00016712,2]
[368974509,1751418652222,-490.0,0.00016712,2]
[368974511,1751418652232,-200.940784,0.00016712,2]
[368974513,1751418652242,-200.940784,0.00016712,2]
[368974515,1751418652252,-200.940784,0.00016712,2]
[368974517,1751418652263,-151.0,0.00016712,2]
[368974519,1751418652277,-151.0,0.00016712,2]
[368974521,1751418652287,-151.0,0.00016712,2]
[368974523,1751418652297,-494.65,0.00016712,2]
[368974525,1751418652308,-200.940784,0.00016712,2]
[368974527,1751418652318,-200.940784,0.00016712,2]
[368974529,1751418652329,-200.940784,0.00016712,2]
[368974531,1751418652340,-211.037242,0.00016712,2]
[368974533,1751418652350,-541.84949661,0.00016712,2]
[368974535,1751418652361,-490.0,0.00016712,2]
[368974537,1751418652371,-490.0,0.00016712,2]
[368974539,1751418652382,-490.0,0.00016712,2]
[368974541,1751418652392,-272.503914,0.00016712,2]
[368974543,1751418652402,-272.503914,0.00016712,2]
[368974545,1751418652412,-272.503914,0.00016712,2]
[368974547,1751418652421,-272.503914,0.00016712,2]
[368974549,1751418652431,-272.503914,0.00016712,2]
[368974551,1751418652441,-272.503914,0.00016712,2]
[368974553,1751418652451,-154.895331,0.00016712,2]
[368974555,1751418652460,-490.0,0.00016712,2]
[368974557,1751418652470,-490.0,0.00016712,2]
[368974559,1751418652480,-490.0,0.00016712,2]
[368974561,1751418652490,-490.0,0.00016712,2]
[368974563,1751418652500,-151.0,0.00016712,2]
[368974565,1751418652510,-151.0,0.00016712,2]
[368974567,1751418652521,-490.0,0.00016712,2]
[368974569,1751418652535,-151.0,0.00016712,2]
[368974571,1751418652545,-151.0,0.00016712,2]
[368974574,1751418652555,-200.309997,0.00016712,2]
[368974576,1751418652565,-151.0,0.00016712,2]
[368974578,1751418652576,-151.0,0.00016712,2]
[368974603,1751418652821,-490.0,0.00016712,2]
[368974605,1751418652831,-277.53923562,0.00016712,2]
[368974607,1751418652843,-262.66865667,0.00016712,2]
[368974609,1751418652853,-200.0,0.00016712,2]
[368974611,1751418652863,-490.0,0.00016712,2]
[368974613,1751418652874,-490.0,0.00016712,2]
[368974615,1751418652883,-506.78,0.00016712,2]
[368974616,1751418652892,-490.0,0.00016712,2]
[368974618,1751418652902,-112.55953197,0.00016712,2]
[368974623,1751418652933,-785.01896403,0.00016712,2]
[368974625,1751418652943,-533.295327,0.00016712,2]
[368974626,1751418652952,-533.295327,0.00016712,2]
[368974628,1751418652962,-490.0,0.00016712,2]
[368974630,1751418652972,-500.0,0.00016712,2]
[368974632,1751418652982,-490.0,0.00016712,2]
[368974634,1751418652992,-490.0,0.00016712,2]
[368974636,1751418653001,-490.0,0.00016712,2]
[368974638,1751418653011,-150.0,0.00016712,2]
[368974640,1751418653023,-150.0,0.00016712,2]
[368974642,1751418653033,-972.0,0.00016712,2]
[368974644,1751418653042,-151.0,0.00016712,2]
[368974647,1751418653052,-152.146088,0.00016712,2]
[368974649,1751418653062,-552.48,0.00016712,2]
[368974651,1751418653072,-490.0,0.00016712,2]
[368974652,1751418653081,-1000.0,0.00016712,2]
[368974654,1751418653090,-255.552065,0.00016712,2]
[368974656,1751418653100,-490.0,0.00016712,2]
[368974658,1751418653109,-151.0,0.00016712,2]
[368974660,1751418653118,-151.0,0.00016712,2]
[368974662,1751418653128,-490.0,0.00016712,2]
[368974664,1751418653139,-3173.90991,0.00016712,2]
[368974666,1751418653150,-2179.18,0.00016712,2]
[368974668,1751418653159,-1524.79,0.00016712,2]
[368974670,1751418653169,-490.0,0.00016712,2]
[368974672,1751418653178,-1607.26,0.00016712,2]
[368974674,1751418653189,-490.0,0.00016712,2]
[368974676,1751418653198,-490.0,0.00016712,2]
[368974678,1751418653209,-1576.33,0.00016712,2]
[368974680,1751418653219,-151.0,0.00016712,2]
[368974682,1751418653229,-151.0,0.00016712,2]
[368974684,1751418653238,-2628.71,0.00016712,2]
[368974685,1751418653247,-205.730948,0.00016712,2]
[368974686,1751418653256,-205.730948,0.00016712,2]
[368974687,1751418653265,-205.730948,0.00016712,2]
[368974688,1751418653275,-490.0,0.00016712,2]
[368974689,1751418653284,-205.730948,0.00016712,2]
[368974690,1751418653294,-548.65,0.00016712,2]
[368974691,1751418653303,-500.0,0.00016712,2]
[368974692,1751418653312,-150.0,0.00016712,2]
[368974693,1751418653321,-490.0,0.00016712,2]
[368974694,1751418653331,-500.0,0.00016712,2]
[368974695,1751418653340,-490.0,0.00016712,2]
[368974696,1751418653349,-1246.157225,0.00016712,2]
[368974697,1751418653359,-490.0,0.00016712,2]
[368974699,1751418653368,-1246.157225,0.00016712,2]
[368974701,1751418653377,-204.82197656,0.00016712,2]
[368974703,1751418653387,-500.0,0.00016712,2]
[368974705,1751418653396,-1246.157225,0.00016712,2]
[368974707,1751418653406,-1246.157225,0.00016712,2]
[368974710,1751418653415,-490.0,0.00016712,2]
[368974711,1751418653425,-13096.17,0.00016712,2]
[368974714,1751418653436,-151.0,0.00016712,2]
[368974716,1751418653445,-151.0,0.00016712,2]
[368974718,1751418653454,-766.31,0.00016712,2]
[368974719,1751418653463,-300.0,0.00016712,2]
[368974721,1751418653473,-151.0,0.00016712,2]
[368974723,1751418653483,-151.0,0.00016712,2]
[368974726,1751418653492,-490.0,0.00016712,2]
[368974727,1751418653502,-151.0,0.00016712,2]
[368974730,1751418653513,-151.0,0.00016712,2]
[368974731,1751418653522,-490.0,0.00016712,2]
[368974734,1751418653532,-156.191065,0.00016712,2]
[368974736,1751418653542,-156.191065,0.00016712,2]
[368974737,1751418653551,-156.191065,0.00016712,2]
[368974740,1751418653560,-156.191065,0.00016712,2]
[368974742,1751418653570,-151.0,0.00016712,2]
[368974743,1751418653579,-151.0,0.00016712,2]
[368974746,1751418653589,-848.28,0.00016712,2]
[368974748,1751418653599,-490.0,0.00016712,2]
[368974750,1751418653608,-1822.04,0.00016712,2]
[368974752,1751418653618,-55.9829654,0.00016712,2]
[368975536,1751419832166,-188.0,0.00013901,2]
[368975538,1751419832176,-165.51195,0.00013997,2]
[368975540,1751419832185,-532.0,0.00014709,2]
[368975542,1751419832194,-250.0,0.00015,2]
[368975544,1751419832204,-300.0,0.00015157,2]
[368975545,1751419832213,-250.0,0.00015314,2]
[368975547,1751419832222,-1000.0,0.00015355,2]
[368975549,1751419832230,-200.0,0.00015361,7]
[368975551,1751419832239,-1470.07,0.00015598,2]
[368975553,1751419832248,-768.50958941,0.00015628,2]
[368975554,1751419832259,-268.61,0.00015628,2]
[368975555,1751419832271,-468.53262298,0.00015628,2]
[368975556,1751419832280,-231.0,0.00015742,2]
[368975557,1751419832291,-367.0,0.00015854,2]
[368975558,1751419832301,-20392.96,0.00015855,2]
[368975559,1751419832311,-150.99,0.000159,2]
[368975560,1751419832319,-9999.99,0.000159,2]
[368975561,1751419832328,-299.99,0.000159,2]
[368975562,1751419832338,-1172.46183041,0.000159,2]
[368975563,1751419832374,-790.29087012,0.000159,2]
[368975564,1751419832386,-167.06,0.00015976,2]
[368975565,1751419832395,-171.31,0.00016078,2]
[368975566,1751419832404,-1168.2,0.00016078,2]
[368975567,1751419832413,-651.0,0.00016247,2]
[368975568,1751419832422,-1486.47,0.00016247,2]
[368975569,1751419832432,-987.94,0.00016247,2]
[368975570,1751419832442,-289.1929438,0.00016328,2]
[368975571,1751419832451,-6746.73720373,0.00016338,2]
[368975572,1751419832465,-491.23384,0.00016338,2]
[368975573,1751419832476,-932.71200132,0.00016338,2]
[368975574,1751419832487,-2277.1,0.00016338,2]
[368975575,1751419832498,-4575.01410443,0.00016338,2]
[368975576,1751419832509,-17184.15878541,0.00016338,2]
[368975577,1751419832520,-6781.48184302,0.00016338,2]
[368975578,1751419832532,-548.79404072,0.00016338,2]
[368975579,1751419832543,-694.95700675,0.00016338,2]
[368975580,1751419832606,-743.63974438,0.00016338,2]
[368975589,1751419838239,-18953.00163024,0.00016338,2]
[368975590,1751419838248,-250.0,0.00016362,2]
[368975591,1751419838258,-176.642769,0.00016377,2]
[368975592,1751419838269,-651.0,0.00016392,2]
[368975593,1751419838278,-3981.44155891,0.00016396,2]
[368975594,1751419838289,-231.0,0.00016425,2]
[368975595,1751419838299,-151.0,0.00016428,2]
[368975596,1751419838308,-151.64124087,0.00016428,2]
[368975597,1751419838318,-500.0,0.00016437,2]
[368975598,1751419838327,-500.0,0.00016437,2]
[368975599,1751419838336,-500.0,0.00016437,2]
[368975600,1751419838349,-500.0,0.00016437,2]
[368975601,1751419838360,-500.0,0.00016437,2]
[368975602,1751419838371,-500.0,0.00016437,2]
[368975603,1751419838381,-611.6248897,0.00016437,2]
[368975604,1751419838391,-500.0,0.00016437,2]
[368975605,1751419838403,-500.0,0.00016437,2]
[368975606,1751419838412,-500.0,0.00016437,2]
[368975607,1751419838421,-442.35538864,0.00016437,2]
[368975608,1751419838430,-490.0,0.00016438,2]
[368975609,1751419838440,-490.0,0.00016438,2]
[368975611,1751419838449,-516.62138514,0.00016438,2]
[368975612,1751419838459,-490.0,0.00016438,2]
[368975613,1751419838469,-151.38155389,0.00016438,2]
[368975614,1751419838478,-525.55481506,0.00016438,2]
[368975615,1751419838487,-490.0,0.00016438,2]
[368975616,1751419838497,-490.0,0.00016438,2]
[368975617,1751419838506,-490.0,0.00016438,2]
[368975618,1751419838515,-490.0,0.00016438,2]
[368975619,1751419838524,-490.0,0.00016438,2]
[368975620,1751419838534,-490.0,0.00016438,2]
[368975621,1751419838543,-490.0,0.00016438,2]
[368975622,1751419838553,-490.0,0.00016438,2]
[368975623,1751419838563,-490.0,0.00016438,2]
[368975624,1751419838572,-329.77927046,0.00016438,2]
[368975625,1751419838582,-490.0,0.00016438,2]
[368975626,1751419838592,-490.0,0.00016438,2]
[368975627,1751419838603,-490.0,0.00016438,2]
[368975628,1751419838612,-490.0,0.00016438,2]
[368975629,1751419838621,-490.0,0.00016438,2]
[368975630,1751419838631,-490.0,0.00016438,2]
[368975631,1751419838641,-490.0,0.00016438,2]
[368975634,1751419838650,-490.0,0.00016438,2]
[368975636,1751419838659,-490.0,0.00016438,2]
[368975639,1751419838670,-563.78067222,0.00016438,2]
[368975642,1751419838680,-490.0,0.00016438,2]
[368975645,1751419838689,-554.925898,0.00016438,2]
[368975647,1751419838698,-583.43681137,0.00016438,2]
[368975650,1751419838708,-239.25630486,0.00016438,2]
[368975652,1751419838717,-490.0,0.00016438,2]
[368975654,1751419838727,-490.0,0.00016438,2]
[368975656,1751419838736,-490.0,0.00016438,2]
[368975658,1751419838746,-490.0,0.00016438,2]
[368975660,1751419838759,-490.0,0.00016438,2]
[368975662,1751419838768,-490.0,0.00016438,2]
[368975664,1751419838777,-490.0,0.00016438,2]
[368975666,1751419838787,-490.0,0.00016438,2]
[368975668,1751419838796,-522.98646293,0.00016438,2]
[368975670,1751419838805,-490.0,0.00016438,2]
[368975672,1751419838815,-666.64,0.00016438,2]
[368975674,1751419838824,-490.0,0.00016438,2]
[368975676,1751419838833,-490.0,0.00016438,2]
[368975678,1751419838843,-596.3,0.00016438,2]
[368975680,1751419838852,-490.0,0.00016438,2]
[368975682,1751419838862,-490.0,0.00016438,2]
[368975684,1751419838871,-589.04,0.00016438,2]
[368975686,1751419838883,-194.02,0.00016438,2]
[368975688,1751419838892,-490.0,0.00016438,2]
[368975690,1751419838901,-603.92,0.00016438,2]
[368975692,1751419838911,-494.64741738,0.00016438,2]
[368975694,1751419838920,-490.0,0.00016438,2]
[368975696,1751419838929,-490.0,0.00016438,2]
[368975698,1751419838938,-490.0,0.00016438,2]
[368975700,1751419838947,-490.0,0.00016438,2]
[368975702,1751419838956,-490.0,0.00016438,2]
[368975704,1751419838965,-490.0,0.00016438,2]
[368975706,1751419838974,-490.21303037,0.00016438,2]
[368975730,1751419839217,-9.78696963,0.00016438,2]
[368975732,1751419839226,-490.0,0.00016438,2]
[368975734,1751419839236,-490.0,0.00016438,2]
[368975736,1751419839244,-490.0,0.00016438,2]
[368975738,1751419839253,-490.0,0.00016438,2]
[368975740,1751419839263,-490.0,0.00016438,2]
[368975742,1751419839272,-490.0,0.00016438,2]
[368975744,1751419839281,-998.1,0.00016438,2]
[368975746,1751419839290,-490.0,0.00016438,2]
[368975748,1751419839299,-490.0,0.00016438,2]
[368975750,1751419839308,-490.0,0.00016438,2]
[368975752,1751419839317,-490.0,0.00016438,2]
[368975754,1751419839326,-490.0,0.00016438,2]
[368975756,1751419839335,-490.0,0.00016438,2]
[368975758,1751419839346,-191.39,0.00016438,2]
[368975760,1751419839355,-490.0,0.00016438,2]
[368975761,1751419839364,-490.0,0.00016438,2]
[368975763,1751419839374,-490.0,0.00016438,2]
[368975765,1751419839383,-490.0,0.00016438,2]
[368975768,1751419839393,-490.0,0.00016438,2]
[368975769,1751419839402,-490.0,0.00016438,2]
[368975772,1751419839411,-490.0,0.00016438,2]
[368975773,1751419839421,-490.0,0.00016438,2]
[368975775,1751419839430,-490.0,0.00016438,2]
[368975777,1751419839439,-307.12113037,0.00016438,2]
[368975779,1751419839477,-407.73886963,0.00016438,2]
[368975780,1751419839487,-490.0,0.00016438,2]
[368975781,1751419839497,-490.0,0.00016438,2]
[368975782,1751419839507,-490.0,0.00016438,2]
[368975783,1751419839516,-1342.73,0.00016438,2]
[368975784,1751419839525,-490.0,0.00016438,2]
[368975785,1751419839535,-490.0,0.00016438,2]
[368975786,1751419839545,-490.0,0.00016438,2]
[368975787,1751419839555,-610.62695024,0.00016438,2]
[368975891,1751419840570,-824.91304976,0.00016438,2]
[368975893,1751419840580,-1458.66,0.00016438,2]
[368975895,1751419840590,-402.18045211,0.00016438,2]
[368975898,1751419840604,-87.81954789,0.00016438,2]
[368975900,1751419840613,-490.0,0.00016438,2]
[368975902,1751419840622,-490.0,0.00016438,2]
[368975903,1751419840632,-490.0,0.00016438,2]
[368975906,1751419840642,-490.0,0.00016438,2]
[368975907,1751419840651,-630.38,0.00016438,2]
[368975909,1751419840661,-490.0,0.00016438,2]
[368975912,1751419840672,-490.0,0.00016438,2]
[368975914,1751419840682,-490.0,0.00016438,2]
[368975916,1751419840691,-65.80045211,0.00016438,2]
[368975918,1751419840703,-424.19954789,0.00016438,2]
[368975920,1751419840711,-490.0,0.00016438,2]
[368975922,1751419840721,-490.0,0.00016438,2]
[368975924,1751419840730,-533.41,0.00016438,2]
[368975925,1751419840739,-490.0,0.00016438,2]
[368975927,1751419840748,-490.0,0.00016438,2]
[368975929,1751419840758,-490.0,0.00016438,2]
[368975931,1751419840767,-490.0,0.00016438,2]
[368975933,1751419840777,-490.0,0.00016438,2]
[368975935,1751419840786,-490.0,0.00016438,2]
[368975937,1751419840795,-864.27,0.00016438,2]
[368975939,1751419840805,-490.0,0.00016438,2]
[368975941,1751419840814,-490.0,0.00016438,2]
[368975943,1751419840823,-1848.48,0.00016438,2]